[Event "Titled Tuesday Blitz January 17 Late 2023"]
[White "Belenkaya, Dina"]
[Black "Hirneise, Jens"]
[WhiteFideId "24142654"]
[BlackFideId "24614734"]
[WhiteElo "2267"]
[BlackElo "2277"]
[Result "0-1"]
[Round "07"]
[TimeControl "180+2"]
[Date "2023.01.17"]
[WhiteClock "0:00:48"]
[BlackClock "0:00:25"]

1. e4 {[%clk 0:03:00]}  c5 {[%clk 0:02:03]} 2. Nc3 {[%clk 0:02:57]}  d6 {[%clk 0:02:02]} 3. Nf3 {[%clk 0:02:56]}  Bd7 {[%clk 0:02:00]} 4. g3 {[%clk 0:02:54]}  Nc6 {[%clk 0:01:58]} 5. Bg2 {[%clk 0:02:54]}  Nf6 {[%clk 0:01:44]} 6. O-O {[%clk 0:02:51]}  e6 {[%clk 0:01:44]} 7. Re1 {[%clk 0:02:46]}  e5 {[%clk 0:01:43]} 8. Nd5 {[%clk 0:02:43]}  Be7 {[%clk 0:01:44]} 9. d3 {[%clk 0:02:36]}  O-O {[%clk 0:01:41]} 10. c3 {[%clk 0:02:30]}  Be6 {[%clk 0:01:34]} 11. Nd2 {[%clk 0:02:27]}  Bxd5 {[%clk 0:01:31]} 12. exd5 {[%clk 0:02:28]}  Nb8 {[%clk 0:01:32]} 13. a4 {[%clk 0:02:09]}  Nbd7 {[%clk 0:01:32]} 14. Nc4 {[%clk 0:02:04]}  Nb6 {[%clk 0:01:28]} 15. Ne3 {[%clk 0:02:02]}  Re8 {[%clk 0:01:28]} 16. a5 {[%clk 0:02:01]}  Nbd7 {[%clk 0:01:28]} 17. Nf5 {[%clk 0:02:00]}  Bf8 {[%clk 0:01:28]} 18. Bg5 {[%clk 0:02:00]}  g6 {[%clk 0:01:23]} 19. Nh6+ {[%clk 0:02:00]}  Kg7 {[%clk 0:01:18]} 20. h4 {[%clk 0:02:00]}  Qc7 {[%clk 0:01:15]} 21. g4 {[%clk 0:01:55]}  Ng8 {[%clk 0:01:14]} 22. Qd2 {[%clk 0:01:49]}  Nxh6 {[%clk 0:01:12]} 23. Bxh6+ {[%clk 0:01:50]}  Kg8 {[%clk 0:01:13]} 24. h5 {[%clk 0:01:49]}  Bxh6 {[%clk 0:01:06]} 25. Qxh6 {[%clk 0:01:50]}  Qd8 {[%clk 0:01:07]} 26. g5 {[%clk 0:01:47]}  Qe7 {[%clk 0:01:07]} 27. hxg6 {[%clk 0:01:44]}  fxg6 {[%clk 0:00:58]} 28. Bh3 {[%clk 0:01:44]}  Nf8 {[%clk 0:00:56]} 29. Re4 {[%clk 0:01:43]}  Qg7 {[%clk 0:00:56]} 30. Qh4 {[%clk 0:01:42]}  Re7 {[%clk 0:00:55]} 31. Rae1 {[%clk 0:01:41]}  Rf7 {[%clk 0:00:54]} 32. f4 {[%clk 0:01:35]}  exf4 {[%clk 0:00:52]} 33. Rxf4 {[%clk 0:01:29]}  b6 {[%clk 0:00:39]} 34. Be6 {[%clk 0:01:25]}  Nxe6 {[%clk 0:00:39]} 35. dxe6 {[%clk 0:01:26]}  Rxf4 {[%clk 0:00:35]} 36. Qxf4 {[%clk 0:01:27]}  Qe7 {[%clk 0:00:36]} 37. Qf6 {[%clk 0:01:25]}  Re8 {[%clk 0:00:35]} 38. Kf2 {[%clk 0:01:25]}  Rf8 {[%clk 0:00:34]} 39. Kg1 {[%clk 0:01:15]}  Rxf6 {[%clk 0:00:31]} 40. gxf6 {[%clk 0:01:16]}  Qxf6 {[%clk 0:00:32]} 41. e7 {[%clk 0:01:17]}  Qg5+ {[%clk 0:00:31]} 42. Kf1 {[%clk 0:01:14]}  Qf5+ {[%clk 0:00:29]} 43. Kg2 {[%clk 0:01:09]}  Qg4+ {[%clk 0:00:29]} 44. Kf2 {[%clk 0:01:06]}  Qh4+ {[%clk 0:00:29]} 45. Kf1 {[%clk 0:01:06]}  Qxe1+ {[%clk 0:00:29]} 46. Kxe1 {[%clk 0:01:07]}  Kf7 {[%clk 0:00:30]} 47. b4 {[%clk 0:00:49]}  cxb4 {[%clk 0:00:28]} 48. cxb4 {[%clk 0:00:46]}  bxa5 {[%clk 0:00:27]} 49. bxa5 {[%clk 0:00:45]}  Kxe7 {[%clk 0:00:27]} 50. Kd2 {[%clk 0:00:45]}  h5 {[%clk 0:00:28]} 51. Ke3 {[%clk 0:00:46]}  h4 {[%clk 0:00:27]} 52. Kf4 {[%clk 0:00:47]}  g5+ {[%clk 0:00:25]} 53. Kg4 {[%clk 0:00:48]}  Ke6 {[%clk 0:00:25]} 54. d4 {[%clk 0:00:48]}  Kd5 {[%clk 0:00:25]} 55. a6 {[%clk 0:00:48]}  Kxd4 {[%clk 0:00:25]} 0-1


[Site "https://www.chess.com"]

[Event "Titled Tuesday Blitz January 17 Late 2023"]
[White "Rego, Pedro Filipe"]
[Black "Fernandez Garcia, Gumersindo"]
[WhiteFideId "1904310"]
[BlackFideId "24516740"]
[WhiteElo "2312"]
[BlackElo "2160"]
[Result "0-1"]
[Round "07"]
[TimeControl "180+2"]
[Date "2023.01.17"]
[WhiteClock "0:00:02"]
[BlackClock "0:00:17"]

1. c4 {[%clk 0:02:44]}  Nf6 {[%clk 0:02:57]} 2. g3 {[%clk 0:02:43]}  e5 {[%clk 0:02:57]} 3. Bg2 {[%clk 0:02:42]}  c6 {[%clk 0:02:57]} 4. Nf3 {[%clk 0:02:36]}  e4 {[%clk 0:02:56]} 5. Nd4 {[%clk 0:02:35]}  d5 {[%clk 0:02:56]} 6. d3 {[%clk 0:02:33]}  dxc4 {[%clk 0:02:50]} 7. dxe4 {[%clk 0:02:30]}  Bb4+ {[%clk 0:02:50]} 8. Nc3 {[%clk 0:02:27]}  c5 {[%clk 0:02:49]} 9. Nb5 {[%clk 0:02:24]}  Qxd1+ {[%clk 0:02:45]} 10. Kxd1 {[%clk 0:02:25]}  Na6 {[%clk 0:02:43]} 11. Nd6+ {[%clk 0:02:17]}  Ke7 {[%clk 0:02:40]} 12. e5 {[%clk 0:02:15]}  Ng4 {[%clk 0:02:36]} 13. Nd5+ {[%clk 0:02:12]}  Kf8 {[%clk 0:02:30]} 14. Be3 {[%clk 0:02:01]}  Nxe5 {[%clk 0:02:25]} 15. a3 {[%clk 0:01:34]}  Ba5 {[%clk 0:02:21]} 16. f4 {[%clk 0:01:23]}  Ng4 {[%clk 0:02:17]} 17. Bg1 {[%clk 0:01:23]}  Rb8 {[%clk 0:02:12]} 18. Nxc4 {[%clk 0:01:08]}  Bd8 {[%clk 0:02:03]} 19. Kc2 {[%clk 0:01:08]}  Nc7 {[%clk 0:01:59]} 20. Bxc5+ {[%clk 0:01:04]}  Kg8 {[%clk 0:01:54]} 21. Bxa7 {[%clk 0:01:02]}  Ra8 {[%clk 0:01:52]} 22. Bd4 {[%clk 0:00:50]}  Be6 {[%clk 0:01:48]} 23. Nxc7 {[%clk 0:00:41]}  Bxc7 {[%clk 0:01:48]} 24. Bxb7 {[%clk 0:00:42]}  Rd8 {[%clk 0:01:40]} 25. Kc3 {[%clk 0:00:33]}  f6 {[%clk 0:01:09]} 26. Rad1 {[%clk 0:00:27]}  Kf7 {[%clk 0:01:08]} 27. Bf3 {[%clk 0:00:25]}  Rc8 {[%clk 0:01:04]} 28. b3 {[%clk 0:00:24]}  h5 {[%clk 0:00:59]} 29. h3 {[%clk 0:00:20]}  Nh6 {[%clk 0:00:56]} 30. Bxh5+ {[%clk 0:00:20]}  g6 {[%clk 0:00:56]} 31. Bf3 {[%clk 0:00:19]}  Nf5 {[%clk 0:00:57]} 32. Bf2 {[%clk 0:00:19]}  Ba5+ {[%clk 0:00:54]} 33. Kb2 {[%clk 0:00:17]}  Bc7 {[%clk 0:00:49]} 34. g4 {[%clk 0:00:15]}  Ne7 {[%clk 0:00:41]} 35. Nd6+ {[%clk 0:00:15]}  Bxd6 {[%clk 0:00:41]} 36. Rxd6 {[%clk 0:00:15]}  Rb8 {[%clk 0:00:40]} 37. b4 {[%clk 0:00:16]}  Rhc8 {[%clk 0:00:39]} 38. Rc1 {[%clk 0:00:15]}  Rh8 {[%clk 0:00:37]} 39. Bg2 {[%clk 0:00:14]}  f5 {[%clk 0:00:35]} 40. Rc7 {[%clk 0:00:14]}  fxg4 {[%clk 0:00:32]} 41. hxg4 {[%clk 0:00:13]}  Rh2 {[%clk 0:00:31]} 42. Bc5 {[%clk 0:00:12]}  Rxg2 {[%clk 0:00:30]} 43. Rd3 {[%clk 0:00:12]}  Rxe2+ {[%clk 0:00:29]} 44. Kc3 {[%clk 0:00:12]}  Re8 {[%clk 0:00:28]} 45. b5 {[%clk 0:00:09]}  Kf6 {[%clk 0:00:25]} 46. g5+ {[%clk 0:00:08]}  Kf7 {[%clk 0:00:24]} 47. b6 {[%clk 0:00:08]}  Bf5 {[%clk 0:00:24]} 48. Rd6 {[%clk 0:00:07]}  Kg8 {[%clk 0:00:20]} 49. b7 {[%clk 0:00:03]}  Rc2+ {[%clk 0:00:20]} 50. Kb4 {[%clk 0:00:03]}  Rb2+ {[%clk 0:00:20]} 51. Kc3 {[%clk 0:00:02]}  Rb1 {[%clk 0:00:19]} 52. a4 {[%clk 0:00:02]}  Rb8 {[%clk 0:00:17]} 0-1


[Site "https://www.chess.com"]

[Event "Titled Tuesday Blitz January 17 Late 2023"]
[White "Odegov, Artem"]
[Black "Vasques, Antonio Pedro Freixial"]
[WhiteFideId "34183644"]
[BlackFideId "1908332"]
[WhiteElo "2261"]
[BlackElo "2214"]
[Result "1-0"]
[Round "07"]
[TimeControl "180+2"]
[Date "2023.01.17"]
[WhiteClock "0:01:14"]
[BlackClock "0:00:13"]

1. d4 {[%clk 0:03:00]}  Nf6 {[%clk 0:02:56]} 2. c4 {[%clk 0:02:57]}  e6 {[%clk 0:02:56]} 3. Nc3 {[%clk 0:02:54]}  Bb4 {[%clk 0:02:53]} 4. Nf3 {[%clk 0:02:54]}  d5 {[%clk 0:02:50]} 5. Qa4+ {[%clk 0:02:51]}  Nc6 {[%clk 0:02:50]} 6. a3 {[%clk 0:02:50]}  Be7 {[%clk 0:02:27]} 7. e3 {[%clk 0:02:46]}  O-O {[%clk 0:02:27]} 8. Qc2 {[%clk 0:02:44]}  a6 {[%clk 0:02:26]} 9. b3 {[%clk 0:02:23]}  dxc4 {[%clk 0:02:11]} 10. bxc4 {[%clk 0:02:23]}  b6 {[%clk 0:01:50]} 11. Bd3 {[%clk 0:02:22]}  Bb7 {[%clk 0:01:49]} 12. O-O {[%clk 0:02:14]}  Bd6 {[%clk 0:01:29]} 13. Bb2 {[%clk 0:01:58]}  e5 {[%clk 0:01:25]} 14. Ne4 {[%clk 0:01:49]}  exd4 {[%clk 0:00:51]} 15. exd4 {[%clk 0:01:46]}  Nxe4 {[%clk 0:00:43]} 16. Bxe4 {[%clk 0:01:47]}  h6 {[%clk 0:00:42]} 17. c5 {[%clk 0:01:40]}  bxc5 {[%clk 0:00:35]} 18. dxc5 {[%clk 0:01:41]}  Be7 {[%clk 0:00:36]} 19. Rad1 {[%clk 0:01:37]}  Qb8 {[%clk 0:00:28]} 20. Rfe1 {[%clk 0:01:31]}  Re8 {[%clk 0:00:20]} 21. Rd7 {[%clk 0:01:16]}  Bc8 {[%clk 0:00:18]} 22. Bxc6 {[%clk 0:01:14]}  Bxd7 {[%clk 0:00:13]} 23. Bxd7 {[%clk 0:01:14]}  Qa7 {[%clk 0:00:13]} 1-0


[Site "https://www.chess.com"]

[Event "Titled Tuesday Blitz January 17 Late 2023"]
[White "Defend, Balint"]
[Black "Kostiukov, Alexandr"]
[WhiteFideId "17004853"]
[BlackFideId "14108100"]
[WhiteElo "1673"]
[BlackElo "2271"]
[Result "0-1"]
[Round "07"]
[TimeControl "180+2"]
[Date "2023.01.17"]
[WhiteClock "0:01:33"]
[BlackClock "0:01:39"]

1. e4 {[%clk 0:03:00]}  c5 {[%clk 0:02:57]} 2. Nf3 {[%clk 0:03:01]}  g6 {[%clk 0:02:57]} 3. c3 {[%clk 0:03:00]}  Bg7 {[%clk 0:02:57]} 4. d4 {[%clk 0:02:58]}  cxd4 {[%clk 0:02:58]} 5. cxd4 {[%clk 0:02:59]}  d5 {[%clk 0:02:58]} 6. e5 {[%clk 0:03:00]}  Bg4 {[%clk 0:02:55]} 7. Bb5+ {[%clk 0:02:59]}  Nc6 {[%clk 0:02:55]} 8. Nc3 {[%clk 0:02:55]}  Nh6 {[%clk 0:02:54]} 9. a4 {[%clk 0:02:55]}  Nf5 {[%clk 0:02:52]} 10. O-O {[%clk 0:02:51]}  O-O {[%clk 0:02:49]} 11. Be3 {[%clk 0:02:49]}  e6 {[%clk 0:02:47]} 12. Bxc6 {[%clk 0:02:45]}  bxc6 {[%clk 0:02:46]} 13. a5 {[%clk 0:02:44]}  c5 {[%clk 0:02:34]} 14. Ne2 {[%clk 0:02:21]}  Bxf3 {[%clk 0:02:28]} 15. gxf3 {[%clk 0:02:20]}  c4 {[%clk 0:02:20]} 16. f4 {[%clk 0:02:18]}  Bh6 {[%clk 0:02:11]} 17. b3 {[%clk 0:02:11]}  cxb3 {[%clk 0:01:53]} 18. Qxb3 {[%clk 0:02:12]}  Qh4 {[%clk 0:01:51]} 19. Qd3 {[%clk 0:01:51]}  Qg4+ {[%clk 0:01:43]} 20. Kh1 {[%clk 0:01:50]}  Qf3+ {[%clk 0:01:41]} 21. Kg1 {[%clk 0:01:50]}  Nh4 {[%clk 0:01:39]} 22. f5 {[%clk 0:01:33]}  Qg2# {[%clk 0:01:39]} 0-1


[Site "https://www.chess.com"]

[Event "Titled Tuesday Blitz January 17 Late 2023"]
[White "Van Dael, Siem"]
[Black "TheKnightOfBosnia"]
[WhiteFideId "1049771"]
[WhiteElo "2319"]
[BlackElo "2530"]
[Result "0-1"]
[Round "07"]
[TimeControl "180+2"]
[Date "2023.01.17"]
[WhiteClock "0:00:02"]
[BlackClock "0:00:32"]

1. e4 {[%clk 0:03:00]}  e5 {[%clk 0:02:59]} 2. Nf3 {[%clk 0:03:00]}  Nc6 {[%clk 0:02:59]} 3. Bc4 {[%clk 0:03:00]}  Nf6 {[%clk 0:02:59]} 4. d3 {[%clk 0:03:00]}  Bc5 {[%clk 0:02:59]} 5. Nc3 {[%clk 0:02:58]}  d6 {[%clk 0:02:58]} 6. Bg5 {[%clk 0:02:59]}  h6 {[%clk 0:02:58]} 7. Bxf6 {[%clk 0:02:59]}  Qxf6 {[%clk 0:02:58]} 8. Nd5 {[%clk 0:03:00]}  Qd8 {[%clk 0:02:58]} 9. c3 {[%clk 0:03:01]}  a6 {[%clk 0:02:56]} 10. O-O {[%clk 0:02:59]}  Ne7 {[%clk 0:02:56]} 11. d4 {[%clk 0:02:59]}  exd4 {[%clk 0:02:55]} 12. cxd4 {[%clk 0:02:59]}  Ba7 {[%clk 0:02:54]} 13. Nxe7 {[%clk 0:02:51]}  Qxe7 {[%clk 0:02:55]} 14. Re1 {[%clk 0:02:51]}  Be6 {[%clk 0:02:45]} 15. Bd5 {[%clk 0:02:31]}  c6 {[%clk 0:02:33]} 16. Bb3 {[%clk 0:02:26]}  Bg4 {[%clk 0:02:25]} 17. e5 {[%clk 0:02:23]}  d5 {[%clk 0:02:22]} 18. Re3 {[%clk 0:02:20]}  O-O {[%clk 0:02:21]} 19. Bc2 {[%clk 0:02:19]}  Bxf3 {[%clk 0:02:11]} 20. Rxf3 {[%clk 0:02:19]}  g6 {[%clk 0:01:53]} 21. Qd2 {[%clk 0:02:15]}  Kg7 {[%clk 0:01:47]} 22. Re1 {[%clk 0:02:15]}  Qg5 {[%clk 0:01:44]} 23. Qd3 {[%clk 0:02:08]}  Rae8 {[%clk 0:01:42]} 24. Rg3 {[%clk 0:02:02]}  Qh5 {[%clk 0:01:34]} 25. e6 {[%clk 0:01:47]}  f5 {[%clk 0:01:29]} 26. Qe3 {[%clk 0:01:03]}  Rf6 {[%clk 0:01:10]} 27. Rh3 {[%clk 0:00:43]}  Qg5 {[%clk 0:01:10]} 28. f4 {[%clk 0:00:43]}  Qg4 {[%clk 0:01:03]} 29. Rg3 {[%clk 0:00:27]}  Rfxe6 {[%clk 0:00:54]} 30. Qxe6 {[%clk 0:00:15]}  Rxe6 {[%clk 0:00:53]} 31. Rxe6 {[%clk 0:00:16]}  Bxd4+ {[%clk 0:00:54]} 32. Kh1 {[%clk 0:00:15]}  Qxf4 {[%clk 0:00:53]} 33. Rgxg6+ {[%clk 0:00:11]}  Kf7 {[%clk 0:00:53]} 34. h3 {[%clk 0:00:02]}  Qc1+ {[%clk 0:00:53]} 35. Kh2 {[%clk 0:00:02]}  Qg1+ {[%clk 0:00:37]} 36. Kg3 {[%clk 0:00:02]}  Qf2+ {[%clk 0:00:38]} 37. Kh2 {[%clk 0:00:02]}  Be5+ {[%clk 0:00:31]} 38. Rxe5 {[%clk 0:00:02]}  Kxg6 {[%clk 0:00:32]} 0-1


[Site "https://www.chess.com"]

[Event "Titled Tuesday Blitz January 17 Late 2023"]
[White "Strahov, Andrej"]
[Black "Medeiros,Thauane Ferreira"]
[WhiteFideId "4165489"]
[BlackFideId "2134470"]
[WhiteElo "2398"]
[BlackElo "1854"]
[Result "0-1"]
[Round "07"]
[TimeControl "180+2"]
[Date "2023.01.17"]
[WhiteClock "0:00:02"]
[BlackClock "0:00:53"]

1. e4 {[%clk 0:02:58]}  e5 {[%clk 0:02:58]} 2. Nf3 {[%clk 0:02:58]}  Nc6 {[%clk 0:02:57]} 3. Bc4 {[%clk 0:02:57]}  Nf6 {[%clk 0:02:56]} 4. d3 {[%clk 0:02:57]}  Bc5 {[%clk 0:02:46]} 5. c3 {[%clk 0:02:57]}  d6 {[%clk 0:02:43]} 6. Nbd2 {[%clk 0:02:56]}  a6 {[%clk 0:02:42]} 7. a4 {[%clk 0:02:55]}  h6 {[%clk 0:02:41]} 8. Bb3 {[%clk 0:02:55]}  O-O {[%clk 0:02:38]} 9. h3 {[%clk 0:02:55]}  Be6 {[%clk 0:02:36]} 10. Bc2 {[%clk 0:02:55]}  Ba7 {[%clk 0:02:30]} 11. O-O {[%clk 0:02:55]}  d5 {[%clk 0:02:28]} 12. exd5 {[%clk 0:02:45]}  Nxd5 {[%clk 0:02:29]} 13. Re1 {[%clk 0:02:41]}  f6 {[%clk 0:02:25]} 14. d4 {[%clk 0:02:36]}  Qd7 {[%clk 0:02:20]} 15. dxe5 {[%clk 0:02:33]}  Nxe5 {[%clk 0:02:21]} 16. Nxe5 {[%clk 0:02:30]}  fxe5 {[%clk 0:02:22]} 17. Ne4 {[%clk 0:02:24]}  Rad8 {[%clk 0:02:13]} 18. Qh5 {[%clk 0:02:21]}  Bf5 {[%clk 0:02:10]} 19. Be3 {[%clk 0:01:45]}  Nxe3 {[%clk 0:02:06]} 20. fxe3 {[%clk 0:01:42]}  Qc6 {[%clk 0:01:55]} 21. Bb3+ {[%clk 0:01:28]}  Kh8 {[%clk 0:01:54]} 22. Ng5 {[%clk 0:01:25]}  Rd2 {[%clk 0:01:37]} 23. Nf3 {[%clk 0:00:48]}  Rxb2 {[%clk 0:01:33]} 24. Bf7 {[%clk 0:00:45]}  Qf6 {[%clk 0:01:16]} 25. Bd5 {[%clk 0:00:38]}  c6 {[%clk 0:01:14]} 26. Bc4 {[%clk 0:00:37]}  Bg6 {[%clk 0:01:11]} 27. Qg4 {[%clk 0:00:35]}  Bf5 {[%clk 0:01:07]} 28. Qg3 {[%clk 0:00:34]}  e4 {[%clk 0:01:04]} 29. Ne5 {[%clk 0:00:29]}  Bb8 {[%clk 0:01:01]} 30. Nf7+ {[%clk 0:00:21]}  Kh7 {[%clk 0:00:53]} 31. Ng5+ {[%clk 0:00:02]} 0-1


[Site "https://www.chess.com"]

[Event "Titled Tuesday Blitz January 17 Late 2023"]
[White "Aggelis, Nikolaos"]
[Black "Melikhov, Evgeny V."]
[WhiteFideId "4213220"]
[BlackFideId "4122046"]
[WhiteElo "2270"]
[BlackElo "2269"]
[Result "1/2-1/2"]
[Round "07"]
[TimeControl "180+2"]
[Date "2023.01.17"]
[WhiteClock "0:00:14"]
[BlackClock "0:00:02"]

1. d4 {[%clk 0:03:00]}  Nf6 {[%clk 0:02:57]} 2. Nf3 {[%clk 0:03:00]}  d5 {[%clk 0:02:57]} 3. c4 {[%clk 0:02:59]}  e6 {[%clk 0:02:57]} 4. g3 {[%clk 0:02:58]}  dxc4 {[%clk 0:02:56]} 5. Bg2 {[%clk 0:02:53]}  Nc6 {[%clk 0:02:57]} 6. O-O {[%clk 0:02:50]}  Rb8 {[%clk 0:02:56]} 7. a4 {[%clk 0:02:46]}  a6 {[%clk 0:02:56]} 8. a5 {[%clk 0:02:44]}  Bd6 {[%clk 0:02:55]} 9. Qc2 {[%clk 0:02:27]}  O-O {[%clk 0:02:52]} 10. Qxc4 {[%clk 0:02:14]}  e5 {[%clk 0:02:52]} 11. Rd1 {[%clk 0:01:42]}  exd4 {[%clk 0:02:51]} 12. Nxd4 {[%clk 0:01:36]}  Nxd4 {[%clk 0:02:51]} 13. Qxd4 {[%clk 0:01:34]}  Qe7 {[%clk 0:02:47]} 14. Nc3 {[%clk 0:01:32]}  h6 {[%clk 0:02:25]} 15. Bf4 {[%clk 0:01:24]}  Bxf4 {[%clk 0:02:22]} 16. Qxf4 {[%clk 0:01:22]}  Be6 {[%clk 0:02:11]} 17. Rd4 {[%clk 0:01:08]}  c6 {[%clk 0:02:09]} 18. Rad1 {[%clk 0:01:06]}  Rfd8 {[%clk 0:02:03]} 19. Qd2 {[%clk 0:01:05]}  Rxd4 {[%clk 0:01:55]} 20. Qxd4 {[%clk 0:01:04]}  Qc7 {[%clk 0:01:26]} 21. b4 {[%clk 0:00:59]}  b6 {[%clk 0:01:10]} 22. Qd6 {[%clk 0:00:41]}  Qxd6 {[%clk 0:01:10]} 23. Rxd6 {[%clk 0:00:42]}  bxa5 {[%clk 0:01:07]} 24. bxa5 {[%clk 0:00:40]}  Rb3 {[%clk 0:00:49]} 25. Rxc6 {[%clk 0:00:39]}  Ra3 {[%clk 0:00:49]} 26. Rc5 {[%clk 0:00:28]}  Nd7 {[%clk 0:00:42]} 27. Rc8+ {[%clk 0:00:27]}  Kh7 {[%clk 0:00:42]} 28. Be4+ {[%clk 0:00:26]}  f5 {[%clk 0:00:36]} 29. Bd3 {[%clk 0:00:24]}  Rxa5 {[%clk 0:00:34]} 30. Rc6 {[%clk 0:00:25]}  Bf7 {[%clk 0:00:22]} 31. Rxa6 {[%clk 0:00:24]}  Rxa6 {[%clk 0:00:21]} 32. Bxa6 {[%clk 0:00:25]}  Nc5 {[%clk 0:00:20]} 33. Bb5 {[%clk 0:00:24]}  g5 {[%clk 0:00:20]} 34. Kf1 {[%clk 0:00:23]}  Kg7 {[%clk 0:00:20]} 35. e3 {[%clk 0:00:23]}  Kf6 {[%clk 0:00:20]} 36. Ke2 {[%clk 0:00:24]}  Ke5 {[%clk 0:00:16]} 37. Bd3 {[%clk 0:00:23]}  Bh5+ {[%clk 0:00:12]} 38. Kd2 {[%clk 0:00:23]}  Nxd3 {[%clk 0:00:09]} 39. Kxd3 {[%clk 0:00:23]}  Be8 {[%clk 0:00:08]} 40. f4+ {[%clk 0:00:21]}  gxf4 {[%clk 0:00:08]} 41. exf4+ {[%clk 0:00:20]}  Kf6 {[%clk 0:00:08]} 42. Kd4 {[%clk 0:00:21]}  Bc6 {[%clk 0:00:08]} 43. Kc5 {[%clk 0:00:19]}  Bg2 {[%clk 0:00:07]} 44. Kd6 {[%clk 0:00:19]}  Bf3 {[%clk 0:00:05]} 45. Nd5+ {[%clk 0:00:18]}  Kg6 {[%clk 0:00:04]} 46. Ne7+ {[%clk 0:00:17]}  Kf6 {[%clk 0:00:04]} 47. Nd5+ {[%clk 0:00:15]}  Kg6 {[%clk 0:00:04]} 48. Ke5 {[%clk 0:00:16]}  Be4 {[%clk 0:00:03]} 49. Ne7+ {[%clk 0:00:16]}  Kh5 {[%clk 0:00:02]} 50. Nxf5 {[%clk 0:00:16]}  Bxf5 {[%clk 0:00:02]} 51. Kxf5 {[%clk 0:00:14]} 1/2-1/2


[Site "https://www.chess.com"]

[Event "Titled Tuesday Blitz January 17 Late 2023"]
[White "Korchmar, Vasiliy"]
[Black "Mazurkiewicz, Michal"]
[WhiteFideId "24131750"]
[BlackFideId "1124943"]
[WhiteElo "2438"]
[BlackElo "2145"]
[Result "0-1"]
[Round "07"]
[TimeControl "180+2"]
[Date "2023.01.17"]
[WhiteClock "0:00:13"]
[BlackClock "0:00:15"]

1. d4 {[%clk 0:02:55]}  Nf6 {[%clk 0:02:59]} 2. c4 {[%clk 0:02:55]}  e5 {[%clk 0:02:59]} 3. dxe5 {[%clk 0:02:53]}  Ng4 {[%clk 0:03:00]} 4. b3 {[%clk 0:02:36]}  Nxe5 {[%clk 0:02:58]} 5. Bb2 {[%clk 0:02:36]}  Nbc6 {[%clk 0:02:56]} 6. Nd2 {[%clk 0:02:35]}  Bb4 {[%clk 0:02:51]} 7. Nf3 {[%clk 0:02:33]}  Qe7 {[%clk 0:02:50]} 8. Nxe5 {[%clk 0:02:26]}  Nxe5 {[%clk 0:02:50]} 9. e3 {[%clk 0:02:26]}  a5 {[%clk 0:02:40]} 10. Be2 {[%clk 0:02:26]}  O-O {[%clk 0:02:38]} 11. a3 {[%clk 0:02:24]}  Bc5 {[%clk 0:02:36]} 12. O-O {[%clk 0:02:16]}  d6 {[%clk 0:02:36]} 13. Qc2 {[%clk 0:02:08]}  f5 {[%clk 0:01:52]} 14. Rae1 {[%clk 0:02:06]}  Ng4 {[%clk 0:01:21]} 15. h3 {[%clk 0:02:05]}  Nxf2 {[%clk 0:01:16]} 16. Rxf2 {[%clk 0:02:06]}  Qxe3 {[%clk 0:01:15]} 17. Qc3 {[%clk 0:01:15]}  Qxf2+ {[%clk 0:01:12]} 18. Kh2 {[%clk 0:01:16]}  Rf7 {[%clk 0:01:10]} 19. Bh5 {[%clk 0:01:12]}  Qxe1 {[%clk 0:00:51]} 20. Bxf7+ {[%clk 0:01:10]}  Kxf7 {[%clk 0:00:51]} 21. Qxg7+ {[%clk 0:01:09]}  Ke8 {[%clk 0:00:49]} 22. Qg8+ {[%clk 0:00:41]}  Kd7 {[%clk 0:00:49]} 23. Nf3 {[%clk 0:00:42]}  Qe7 {[%clk 0:00:32]} 24. Qh8 {[%clk 0:00:19]}  b5 {[%clk 0:00:26]} 25. cxb5 {[%clk 0:00:16]}  Bb7 {[%clk 0:00:25]} 26. Qg7 {[%clk 0:00:10]}  Bxf3 {[%clk 0:00:24]} 27. gxf3 {[%clk 0:00:09]}  Qxg7 {[%clk 0:00:25]} 28. Bxg7 {[%clk 0:00:10]}  Rg8 {[%clk 0:00:22]} 29. a4 {[%clk 0:00:09]}  Rxg7 {[%clk 0:00:21]} 30. h4 {[%clk 0:00:10]}  Bf2 {[%clk 0:00:15]} 31. h5 {[%clk 0:00:11]}  Bg3+ {[%clk 0:00:15]} 32. Kh3 {[%clk 0:00:11]}  Bf4 {[%clk 0:00:16]} 33. h6 {[%clk 0:00:12]}  Rg6 {[%clk 0:00:16]} 34. b6 {[%clk 0:00:13]}  cxb6 {[%clk 0:00:15]} 35. Kh4 {[%clk 0:00:13]}  Rxh6# {[%clk 0:00:15]} 0-1


[Site "https://www.chess.com"]